[Event "*** Titled Tuesday Blitz"]
[Site "Chess.com"]
[Date "2021.04.06"]
[Round "9"]
[White "chesslh19"]
[Black "cukin84"]
[Result "1/2-1/2"]
[WhiteElo "2235"]
[BlackElo "2098"]
[TimeControl "180+1"]
[EndTime "11:45:26 PDT"]
[Termination "Game drawn by agreement"]

1. e4 {[%clk 0:03:00.9]} 1... c6 {[%clk 0:02:59.6]} 2. d4 {[%clk 0:03:00.6]}
2... d5 {[%clk 0:02:59.6]} 3. Nd2 {[%clk 0:03:00.5]} 3... a6 {[%clk 0:02:58.8]}
4. c3 {[%clk 0:02:56.2]} 4... h6 {[%clk 0:02:58.2]} 5. Bd3 {[%clk 0:02:54.4]}
5... dxe4 {[%clk 0:02:57.6]} 6. Nxe4 {[%clk 0:02:53.7]} 6... Nd7 {[%clk
0:02:49.9]} 7. Nf3 {[%clk 0:02:52.6]} 7... Ngf6 {[%clk 0:02:46.8]} 8. Nxf6+
{[%clk 0:02:32.7]} 8... Nxf6 {[%clk 0:02:46.3]} 9. O-O {[%clk 0:02:32.7]} 9...
Bg4 {[%clk 0:02:45.5]} 10. Re1 {[%clk 0:02:25.2]} 10... e6 {[%clk 0:02:44.6]}
11. Bf4 {[%clk 0:02:20.3]} 11... Bd6 {[%clk 0:02:43.6]} 12. Bg3 {[%clk 0:02:16]}
12... O-O {[%clk 0:02:40.1]} 13. a4 {[%clk 0:02:03]} 13... Bxg3 {[%clk
0:02:32.7]} 14. hxg3 {[%clk 0:02:03]} 14... b5 {[%clk 0:02:31.2]} 15. Qd2 {[%clk
0:01:46.1]} 15... Qd5 {[%clk 0:02:25.4]} 16. Ne5 {[%clk 0:01:39.5]} 16... Bf5
{[%clk 0:02:14.6]} 17. Bxf5 {[%clk 0:01:12.2]} 17... exf5 {[%clk 0:02:15.5]} 18.
Qf4 {[%clk 0:01:12.5]} 18... c5 {[%clk 0:02:05.9]} 19. dxc5 {[%clk 0:00:52.6]}
19... Qxc5 {[%clk 0:02:05.4]} 20. Qxf5 {[%clk 0:00:45.9]} 20... b4 {[%clk
0:01:51.1]} 21. Ng6 {[%clk 0:00:22.5]} 21... Qxf5 {[%clk 0:01:46.5]} 22. Ne7+
{[%clk 0:00:22.5]} 22... Kh7 {[%clk 0:01:46.8]} 23. Nxf5 {[%clk 0:00:23.4]}
23... bxc3 {[%clk 0:01:46.8]} 24. bxc3 {[%clk 0:00:24.3]} 24... Rfc8 {[%clk
0:01:46.1]} 25. Nd6 {[%clk 0:00:16.6]} 25... Rxc3 {[%clk 0:01:41.8]} 26. Nxf7
{[%clk 0:00:16.9]} 26... Rb8 {[%clk 0:01:29.7]} 27. Rec1 {[%clk 0:00:16.1]}
27... Rxc1+ {[%clk 0:01:27]} 28. Rxc1 {[%clk 0:00:17]} 28... Rb4 {[%clk
0:01:27]} 29. a5 {[%clk 0:00:05.8]} 29... Rb5 {[%clk 0:01:24.7]} 30. Nd6 {[%clk
0:00:05.2]} 30... Rxa5 {[%clk 0:01:22.9]} 31. Rc7 {[%clk 0:00:03]} 31... Nd5
{[%clk 0:01:20.8]} 32. Ra7 {[%clk 0:00:02.7]} 32... Nc3 {[%clk 0:01:17.4]} 33.
Ne8 {[%clk 0:00:02.2]} 33... Rg5 {[%clk 0:01:06.2]} 34. f3 {[%clk 0:00:02]}
34... Ne2+ {[%clk 0:01:05.7]} 35. Kf2 {[%clk 0:00:01.6]} 35... Nxg3 {[%clk
0:01:05.7]} 36. Rxa6 {[%clk 0:00:01.8]} 36... Nh1+ {[%clk 0:01:04.6]} 37. Kg1
{[%clk 0:00:01.5]} 37... Ng3 {[%clk 0:01:04.3]} 38. Kf2 {[%clk 0:00:01.9]} 38...
Nf5 {[%clk 0:01:04.1]} 39. Nd6 {[%clk 0:00:01.6]} 39... Nxd6 {[%clk 0:01:03.9]}
40. Rxd6 {[%clk 0:00:01.3]} 40... Rc5 {[%clk 0:01:03.8]} 41. Rd2 {[%clk
0:00:01.2]} 41... h5 {[%clk 0:01:02.9]} 42. Re2 {[%clk 0:00:01.8]} 42... Kh6
{[%clk 0:01:03]} 43. g3 {[%clk 0:00:02]} 43... g6 {[%clk 0:01:03.4]} 44. Kg2
{[%clk 0:00:02.5]} 44... Ra5 {[%clk 0:01:02.9]} 45. Rd2 {[%clk 0:00:02.8]} 45...
Rb5 {[%clk 0:01:01.4]} 1/2-1/2

[Event "*** Titled Tuesday Blitz"]
[Site "Chess.com"]
[Date "2021.04.06"]
[Round "9"]
[White "Marianov_Podstavnikov"]
[Black "Rish_97"]
[Result "1/2-1/2"]
[WhiteElo "2412"]
[BlackElo "2694"]
[TimeControl "180+1"]
[EndTime "11:45:28 PDT"]
[Termination "Game drawn by repetition"]

1. e4 {[%clk 0:03:00.9]} 1... e5 {[%clk 0:02:57.7]} 2. Nf3 {[%clk 0:03:00.8]}
2... Nc6 {[%clk 0:02:57.8]} 3. Bc4 {[%clk 0:03:01]} 3... Bc5 {[%clk 0:02:57.2]}
4. c3 {[%clk 0:03:00]} 4... Nf6 {[%clk 0:02:57.3]} 5. d4 {[%clk 0:02:59.9]} 5...
exd4 {[%clk 0:02:56.8]} 6. e5 {[%clk 0:02:59.9]} 6... d5 {[%clk 0:02:55.4]} 7.
Bb5 {[%clk 0:02:59.8]} 7... Ne4 {[%clk 0:02:55]} 8. cxd4 {[%clk 0:02:59.1]} 8...
Bb6 {[%clk 0:02:51.2]} 9. Nc3 {[%clk 0:02:54.7]} 9... O-O {[%clk 0:02:45.2]} 10.
Be3 {[%clk 0:02:45.9]} 10... Bg4 {[%clk 0:02:44.7]} 11. h3 {[%clk 0:02:45.4]}
11... Bh5 {[%clk 0:02:43.9]} 12. Qc2 {[%clk 0:02:44.9]} 12... Bg6 {[%clk
0:02:43.2]} 13. Qb3 {[%clk 0:02:36.3]} 13... Ne7 {[%clk 0:02:42.5]} 14. O-O
{[%clk 0:02:23.9]} 14... c6 {[%clk 0:02:42.6]} 15. Bd3 {[%clk 0:02:23.8]} 15...
Qd7 {[%clk 0:02:38.1]} 16. Rad1 {[%clk 0:02:11.6]} 16... Rae8 {[%clk 0:02:24.9]}
17. Na4 {[%clk 0:02:01.9]} 17... Bh5 {[%clk 0:02:05.3]} 18. Nxb6 {[%clk
0:01:28.6]} 18... axb6 {[%clk 0:02:03.1]} 19. Be2 {[%clk 0:01:14.6]} 19... b5
{[%clk 0:01:40]} 20. g4 {[%clk 0:01:14.2]} 20... Bxg4 {[%clk 0:01:26.3]} 21.
hxg4 {[%clk 0:01:13.9]} 21... Qxg4+ {[%clk 0:01:27.2]} 22. Kh1 {[%clk
0:01:08.2]} 22... Qh5+ {[%clk 0:00:43.4]} 23. Kg2 {[%clk 0:01:03.4]} 23... Qg4+
{[%clk 0:00:36.5]} 24. Kh1 {[%clk 0:01:03.4]} 24... Nf5 {[%clk 0:00:35.4]} 25.
Rg1 {[%clk 0:01:01.3]} 25... Qh5+ {[%clk 0:00:18.2]} 26. Kg2 {[%clk 0:01:01.4]}
26... Re6 {[%clk 0:00:18.8]} 27. Kf1 {[%clk 0:00:58.3]} 27... Qh3+ {[%clk
0:00:14.9]} 28. Ke1 {[%clk 0:00:55.9]} 28... f6 {[%clk 0:00:15.8]} 29. Nd2
{[%clk 0:00:28.8]} 29... Qh2 {[%clk 0:00:15.8]} 30. Nf3 {[%clk 0:00:25.5]} 30...
Qh3 {[%clk 0:00:15.5]} 31. Nd2 {[%clk 0:00:25.7]} 31... Qh2 {[%clk 0:00:08.8]}
32. Nf3 {[%clk 0:00:25.7]} 32... Qh3 {[%clk 0:00:09.1]} 1/2-1/2

[Event "*** Titled Tuesday Blitz"]
[Site "Chess.com"]
[Date "2021.04.06"]
[Round "9"]
[White "davigator"]
[Black "kamilianin235"]
[Result "1-0"]
[WhiteElo "2374"]
[BlackElo "2250"]
[TimeControl "180+1"]
[EndTime "11:45:29 PDT"]
[Termination "davigator won by checkmate"]

1. e4 {[%clk 0:03:00.9]} 1... c5 {[%clk 0:02:59.7]} 2. Nf3 {[%clk 0:02:59.5]}
2... d6 {[%clk 0:03:00.1]} 3. d4 {[%clk 0:02:58.9]} 3... cxd4 {[%clk 0:03:01]}
4. Nxd4 {[%clk 0:02:59]} 4... Nf6 {[%clk 0:03:00.9]} 5. Nc3 {[%clk 0:02:59.1]}
5... Nc6 {[%clk 0:03:00.9]} 6. Bg5 {[%clk 0:02:57.7]} 6... Qb6 {[%clk
0:03:00.1]} 7. Nb3 {[%clk 0:02:56.6]} 7... e6 {[%clk 0:02:59.2]} 8. Qd2 {[%clk
0:02:56.6]} 8... a6 {[%clk 0:02:58.3]} 9. f3 {[%clk 0:02:55.9]} 9... Be7 {[%clk
0:02:57.7]} 10. O-O-O {[%clk 0:02:55.3]} 10... Qc7 {[%clk 0:02:57.1]} 11. h4
{[%clk 0:02:54.8]} 11... b5 {[%clk 0:02:57]} 12. g4 {[%clk 0:02:54.6]} 12... Bb7
{[%clk 0:02:56.7]} 13. Be3 {[%clk 0:02:52.9]} 13... O-O-O {[%clk 0:02:55.6]} 14.
g5 {[%clk 0:02:52.5]} 14... Nd7 {[%clk 0:02:55.2]} 15. f4 {[%clk 0:02:51.7]}
15... Nc5 {[%clk 0:02:54.2]} 16. Bg2 {[%clk 0:02:48.4]} 16... Kb8 {[%clk
0:02:50.3]} 17. Kb1 {[%clk 0:02:48]} 17... b4 {[%clk 0:02:44.6]} 18. Ne2 {[%clk
0:02:46.1]} 18... a5 {[%clk 0:02:40.8]} 19. Ng3 {[%clk 0:02:41.3]} 19... Na7
{[%clk 0:02:32.4]} 20. Qf2 {[%clk 0:02:39.3]} 20... Nb5 {[%clk 0:02:27.9]} 21.
Rhe1 {[%clk 0:02:32.1]} 21... Rhe8 {[%clk 0:02:25.7]} 22. Nd4 {[%clk 0:02:26.6]}
22... Nxd4 {[%clk 0:02:22.8]} 23. Bxd4 {[%clk 0:02:26.4]} 23... Bf8 {[%clk
0:02:17.6]} 24. Nh5 {[%clk 0:02:25.3]} 24... e5 {[%clk 0:02:13.3]} 25. Bxc5
{[%clk 0:02:24.6]} 25... dxc5 {[%clk 0:02:11.2]} 26. f5 {[%clk 0:02:22.8]} 26...
Rd4 {[%clk 0:02:05.2]} 27. Ng3 {[%clk 0:01:59.7]} 27... Red8 {[%clk 0:02:02.6]}
28. Bf3 {[%clk 0:01:59.2]} 28... c4 {[%clk 0:01:56.3]} 29. Rxd4 {[%clk 0:01:44]}
29... Rxd4 {[%clk 0:01:53.1]} 30. Rd1 {[%clk 0:01:41.5]} 30... Bc5 {[%clk
0:01:50.3]} 31. Rxd4 {[%clk 0:01:41.3]} 31... Bxd4 {[%clk 0:01:49.9]} 32. Qe2
{[%clk 0:01:41.2]} 32... Qb6 {[%clk 0:01:45]} 33. Nh5 {[%clk 0:01:39.9]} 33...
g6 {[%clk 0:01:40.5]} 34. Nf6 {[%clk 0:01:39.6]} 34... Ba6 {[%clk 0:01:27.5]}
35. Nd7+ {[%clk 0:01:38.6]} 35... Kc7 {[%clk 0:01:25.4]} 36. Nxb6 {[%clk
0:01:38]} 36... Kxb6 {[%clk 0:01:26.3]} 37. c3 {[%clk 0:01:37.6]} 37... bxc3
{[%clk 0:01:22.8]} 38. bxc3 {[%clk 0:01:37.7]} 38... Bxc3 {[%clk 0:01:23.4]} 39.
h5 {[%clk 0:01:35.3]} 39... Bd4 {[%clk 0:01:22.8]} 40. fxg6 {[%clk 0:01:33.1]}
40... fxg6 {[%clk 0:01:21.2]} 41. Qc2 {[%clk 0:01:32.3]} 41... Bb5 {[%clk
0:01:12.4]} 42. Be2 {[%clk 0:01:31.6]} 42... Kc5 {[%clk 0:01:11.2]} 43. a4
{[%clk 0:01:30.7]} 43... Ba6 {[%clk 0:01:10.5]} 44. Qa2 {[%clk 0:01:28.9]} 44...
Bc3 {[%clk 0:01:03.4]} 45. Qa3+ {[%clk 0:01:27.5]} 45... Bb4 {[%clk 0:01:02]}
46. Qe3+ {[%clk 0:01:26.9]} 46... Kc6 {[%clk 0:01:02.4]} 47. Qa7 {[%clk
0:01:26]} 47... Bc8 {[%clk 0:00:55.5]} 48. Bxc4 {[%clk 0:01:25.8]} 48... Bc5
{[%clk 0:00:54.1]} 49. Qxh7 {[%clk 0:01:23.8]} 49... gxh5 {[%clk 0:00:48.6]} 50.
g6 {[%clk 0:01:24]} 50... Bf8 {[%clk 0:00:44.5]} 51. Qh8 {[%clk 0:01:18.8]}
51... Kc5 {[%clk 0:00:39.7]} 52. Qxf8+ {[%clk 0:01:17.9]} 52... Kxc4 {[%clk
0:00:40.6]} 53. g7 {[%clk 0:01:18.3]} 53... Be6 {[%clk 0:00:39.1]} 54. g8=Q
{[%clk 0:01:18]} 54... Bxg8 {[%clk 0:00:40]} 55. Qxg8+ {[%clk 0:01:18.3]} 55...
Kd4 {[%clk 0:00:38.8]} 56. Qd5+ {[%clk 0:01:18.1]} 56... Ke3 {[%clk 0:00:39.7]}
57. Qxe5 {[%clk 0:01:18.6]} 57... h4 {[%clk 0:00:38.6]} 58. Qf5 {[%clk
0:01:18.8]} 58... h3 {[%clk 0:00:38.1]} 59. Qxh3+ {[%clk 0:01:18.7]} 59... Kxe4
{[%clk 0:00:39]} 60. Qh5 {[%clk 0:01:19.2]} 60... Kd4 {[%clk 0:00:39.9]} 61.
Qxa5 {[%clk 0:01:19.6]} 61... Kc4 {[%clk 0:00:40.8]} 62. Qb5+ {[%clk 0:01:20.2]}
62... Kd4 {[%clk 0:00:40.5]} 63. a5 {[%clk 0:01:20.9]} 63... Ke4 {[%clk
0:00:41.1]} 64. a6 {[%clk 0:01:21.7]} 64... Kd4 {[%clk 0:00:42]} 65. a7 {[%clk
0:01:22.4]} 65... Ke4 {[%clk 0:00:42.9]} 66. a8=Q+ {[%clk 0:01:22.6]} 66... Kd4
{[%clk 0:00:43.8]} 67. Qad5+ {[%clk 0:01:22.4]} 67... Ke3 {[%clk 0:00:43.5]} 68.
Qbd3+ {[%clk 0:01:22.8]} 68... Kf4 {[%clk 0:00:44.4]} 69. Q5f3+ {[%clk
0:01:22.9]} 69... Kg5 {[%clk 0:00:44.1]} 70. Qdf5+ {[%clk 0:01:22.9]} 70... Kh6
{[%clk 0:00:44]} 71. Q3h5+ {[%clk 0:01:23.3]} 71... Kg7 {[%clk 0:00:44.9]} 72.
Qff7# {[%clk 0:01:23.5]} 1-0

[Event "*** Titled Tuesday Blitz"]
[Site "Chess.com"]
[Date "2021.04.06"]
[Round "9"]
[White "Darius321"]
[Black "korkmaz16"]
[Result "0-1"]
[WhiteElo "2264"]
[BlackElo "2406"]
[TimeControl "180+1"]
[EndTime "11:45:32 PDT"]
[Termination "korkmaz16 won by checkmate"]

1. e4 {[%clk 0:03:00.9]} 1... e5 {[%clk 0:02:56.7]} 2. Nf3 {[%clk 0:03:00.8]}
2... Nc6 {[%clk 0:02:55.3]} 3. Bc4 {[%clk 0:03:00.7]} 3... Bc5 {[%clk
0:02:53.9]} 4. d3 {[%clk 0:02:59.3]} 4... Nf6 {[%clk 0:02:52]} 5. c3 {[%clk
0:02:58.9]} 5... a6 {[%clk 0:02:47.9]} 6. a4 {[%clk 0:02:57]} 6... d6 {[%clk
0:02:47.3]} 7. Nbd2 {[%clk 0:02:55.2]} 7... O-O {[%clk 0:02:37.6]} 8. h3 {[%clk
0:02:54.7]} 8... Be6 {[%clk 0:02:33.8]} 9. Bxe6 {[%clk 0:02:53.5]} 9... fxe6
{[%clk 0:02:33.4]} 10. O-O {[%clk 0:02:52.8]} 10... d5 {[%clk 0:02:14.5]} 11.
Re1 {[%clk 0:02:47.3]} 11... Nh5 {[%clk 0:01:56.1]} 12. Nf1 {[%clk 0:02:31.1]}
12... Nf4 {[%clk 0:01:51]} 13. Be3 {[%clk 0:02:28.1]} 13... d4 {[%clk 0:01:49]}
14. cxd4 {[%clk 0:02:20.2]} 14... Nxd4 {[%clk 0:01:48.6]} 15. Nxe5 {[%clk
0:02:11.1]} 15... Qg5 {[%clk 0:01:47.7]} 16. Bxf4 {[%clk 0:01:33.8]} 16... Rxf4
{[%clk 0:01:45.1]} 17. Nd7 {[%clk 0:01:21.9]} 17... Nf3+ {[%clk 0:01:37.5]} 18.
Kh1 {[%clk 0:01:17.2]} 18... Nxe1 {[%clk 0:01:34.1]} 19. Qxe1 {[%clk 0:01:16.4]}
19... Bxf2 {[%clk 0:01:31.9]} 20. Qb4 {[%clk 0:01:07.1]} 20... b6 {[%clk
0:01:26]} 21. Qc4 {[%clk 0:00:57.4]} 21... Qe7 {[%clk 0:01:00.6]} 22. Ne5 {[%clk
0:00:44.9]} 22... c5 {[%clk 0:00:53.5]} 23. Nh2 {[%clk 0:00:27.7]} 23... Raf8
{[%clk 0:00:48.6]} 24. Nhg4 {[%clk 0:00:26.4]} 24... Bg3 {[%clk 0:00:43.9]} 25.
Nf3 {[%clk 0:00:25]} 25... Rxg4 {[%clk 0:00:32.7]} 26. hxg4 {[%clk 0:00:22.6]}
26... Rxf3 {[%clk 0:00:32.5]} 27. Kg1 {[%clk 0:00:06.2]} 27... Rf7 {[%clk
0:00:24.3]} 28. Rf1 {[%clk 0:00:03.7]} 28... Bh2+ {[%clk 0:00:22.8]} 29. Kxh2
{[%clk 0:00:02]} 29... Rxf1 {[%clk 0:00:23.1]} 30. d4 {[%clk 0:00:02.2]} 30...
Qh4# {[%clk 0:00:22.6]} 0-1

[Event "*** Titled Tuesday Blitz"]
[Site "Chess.com"]
[Date "2021.04.06"]
[Round "9"]
[White "Kretov_Evgenij"]
[Black "Witik"]
[Result "0-1"]
[WhiteElo "2612"]
[BlackElo "2735"]
[TimeControl "180+1"]
[EndTime "11:45:33 PDT"]
[Termination "Witik won by resignation"]

1. c4 {[%clk 0:03:00.9]} 1... e5 {[%clk 0:02:52.3]} 2. Nc3 {[%clk 0:03:00.8]}
2... Bb4 {[%clk 0:02:51.9]} 3. g3 {[%clk 0:03:00.8]} 3... Bxc3 {[%clk
0:02:51.6]} 4. bxc3 {[%clk 0:02:59]} 4... Nc6 {[%clk 0:02:51.1]} 5. Bg2 {[%clk
0:02:59]} 5... Nge7 {[%clk 0:02:51.4]} 6. Nf3 {[%clk 0:02:58.3]} 6... d6 {[%clk
0:02:51.2]} 7. O-O {[%clk 0:02:57.7]} 7... O-O {[%clk 0:02:49.6]} 8. d4 {[%clk
0:02:54.7]} 8... f6 {[%clk 0:02:35.3]} 9. Ba3 {[%clk 0:02:45.4]} 9... b6 {[%clk
0:02:31.3]} 10. c5 {[%clk 0:02:35.8]} 10... bxc5 {[%clk 0:02:26.1]} 11. dxc5
{[%clk 0:02:35.7]} 11... d5 {[%clk 0:02:21.6]} 12. Qa4 {[%clk 0:02:32.3]} 12...
Be6 {[%clk 0:02:16.2]} 13. Rfd1 {[%clk 0:02:29]} 13... Qe8 {[%clk 0:02:11.7]}
14. Rab1 {[%clk 0:02:27.3]} 14... e4 {[%clk 0:01:44.1]} 15. Ne1 {[%clk
0:02:04.4]} 15... Qh5 {[%clk 0:01:36]} 16. Qa6 {[%clk 0:01:54.5]} 16... Bh3
{[%clk 0:01:23.5]} 17. Nc2 {[%clk 0:01:42]} 17... Bxg2 {[%clk 0:01:15.6]} 18.
Kxg2 {[%clk 0:01:42.1]} 18... f5 {[%clk 0:01:00.7]} 19. Nd4 {[%clk 0:01:37.5]}
19... Rf6 {[%clk 0:00:55.7]} 20. Qb7 {[%clk 0:01:29.4]} 20... Raf8 {[%clk
0:00:52.7]} 21. Qxc7 {[%clk 0:01:26.5]} 21... Rh6 {[%clk 0:00:36.4]} 22. h4
{[%clk 0:01:21.6]} 22... f4 {[%clk 0:00:36.7]} 23. Nxc6 {[%clk 0:01:00]} 23...
Nxc6 {[%clk 0:00:34.9]} 24. Rb7 {[%clk 0:00:59.1]} 24... Rg6 {[%clk 0:00:23]}
25. c4 {[%clk 0:00:55.8]} 25... fxg3 {[%clk 0:00:21.8]} 26. Rxd5 {[%clk
0:00:47.7]} 26... Qxe2 {[%clk 0:00:11.3]} 27. Rf5 {[%clk 0:00:38.6]} 27... Rxf5
{[%clk 0:00:06.5]} 28. Rb8+ {[%clk 0:00:38.3]} 28... Rf8 {[%clk 0:00:05.3]} 29.
Rxf8+ {[%clk 0:00:37.6]} 29... Kxf8 {[%clk 0:00:05.9]} 30. Qc8+ {[%clk
0:00:37.6]} 30... Kf7 {[%clk 0:00:04.6]} 31. Qf5+ {[%clk 0:00:36.7]} 31... Rf6
{[%clk 0:00:04.7]} 32. Qh5+ {[%clk 0:00:35.1]} 32... Kf8 {[%clk 0:00:03.3]} 33.
Qxh7 {[%clk 0:00:33.8]} 33... Qxf2+ {[%clk 0:00:03.1]} 34. Kh3 {[%clk
0:00:34.2]} 34... Qf5+ {[%clk 0:00:03.4]} 0-1

[Event "*** Titled Tuesday Blitz"]
[Site "Chess.com"]
[Date "2021.04.06"]
[Round "9"]
[White "Kostukov_Alex"]
[Black "MustafayevFarid2004"]
[Result "1-0"]
[WhiteElo "2307"]
[BlackElo "2428"]
[TimeControl "180+1"]
[EndTime "11:45:34 PDT"]
[Termination "Kostukov_Alex won by checkmate"]

1. g3 {[%clk 0:03:00.9]} 1... d5 {[%clk 0:02:59.3]} 2. Bg2 {[%clk 0:03:00.7]}
2... c6 {[%clk 0:03:00.1]} 3. d3 {[%clk 0:03:01.1]} 3... Nf6 {[%clk 0:03:00.3]}
4. e4 {[%clk 0:03:01.2]} 4... dxe4 {[%clk 0:03:00.2]} 5. dxe4 {[%clk 0:03:01.9]}
5... Qxd1+ {[%clk 0:03:00.8]} 6. Kxd1 {[%clk 0:03:02.8]} 6... Nbd7 {[%clk
0:03:01.3]} 7. f3 {[%clk 0:03:03.1]} 7... e6 {[%clk 0:03:00.4]} 8. Be3 {[%clk
0:03:03]} 8... Bc5 {[%clk 0:02:59.9]} 9. Ke2 {[%clk 0:03:03.2]} 9... Bxe3 {[%clk
0:02:58.3]} 10. Kxe3 {[%clk 0:03:04.1]} 10... e5 {[%clk 0:02:59.2]} 11. Nd2
{[%clk 0:02:59.6]} 11... Nb6 {[%clk 0:02:58.7]} 12. a4 {[%clk 0:02:58.6]} 12...
Be6 {[%clk 0:02:57.2]} 13. b3 {[%clk 0:02:54.3]} 13... O-O-O {[%clk 0:02:56.5]}
14. Bh3 {[%clk 0:02:54.1]} 14... Rhe8 {[%clk 0:02:48]} 15. a5 {[%clk 0:02:50.9]}
15... Nbd7 {[%clk 0:02:41.2]} 16. Bxe6 {[%clk 0:02:50.7]} 16... Rxe6 {[%clk
0:02:40.2]} 17. Nc4 {[%clk 0:02:50.8]} 17... Nc5 {[%clk 0:02:39.6]} 18. Nh3
{[%clk 0:02:48.7]} 18... h6 {[%clk 0:02:27.1]} 19. b4 {[%clk 0:02:44.2]} 19...
Na6 {[%clk 0:01:51.2]} 20. c3 {[%clk 0:02:43.9]} 20... Nc7 {[%clk 0:01:48.2]}
21. Nf2 {[%clk 0:02:36.8]} 21... Nb5 {[%clk 0:01:47.2]} 22. Rac1 {[%clk
0:02:35.3]} 22... Nd7 {[%clk 0:01:40.1]} 23. Rhd1 {[%clk 0:02:32]} 23... g6
{[%clk 0:01:38.8]} 24. g4 {[%clk 0:02:22.1]} 24... Kc7 {[%clk 0:01:35.3]} 25.
Rd3 {[%clk 0:02:14.5]} 25... Nd6 {[%clk 0:01:18.9]} 26. Na3 {[%clk 0:02:09.3]}
26... f5 {[%clk 0:01:03.9]} 27. Rcd1 {[%clk 0:02:09]} 27... Nf6 {[%clk
0:00:54.4]} 28. h3 {[%clk 0:01:58.8]} 28... Rf8 {[%clk 0:00:48.7]} 29. c4 {[%clk
0:01:40.9]} 29... h5 {[%clk 0:00:37.6]} 30. g5 {[%clk 0:01:35.5]} 30... Nfe8
{[%clk 0:00:34.5]} 31. c5 {[%clk 0:01:35.5]} 31... Nc8 {[%clk 0:00:33.8]} 32.
Rd7+ {[%clk 0:01:32.4]} 32... Kb8 {[%clk 0:00:30.7]} 33. Nc4 {[%clk 0:01:32.4]}
33... fxe4 {[%clk 0:00:27.2]} 34. Nxe4 {[%clk 0:01:30.6]} 34... Nc7 {[%clk
0:00:27.8]} 35. Rg7 {[%clk 0:01:28.8]} 35... Nd5+ {[%clk 0:00:21]} 36. Rxd5
{[%clk 0:01:17.6]} 36... cxd5 {[%clk 0:00:20.6]} 37. Ncd6 {[%clk 0:01:17.8]}
37... d4+ {[%clk 0:00:20.6]} 38. Ke2 {[%clk 0:01:16.3]} 38... Nxd6 {[%clk
0:00:20.9]} 39. Nxd6 {[%clk 0:01:15.6]} 39... Rxd6 {[%clk 0:00:18.6]} 40. cxd6
{[%clk 0:01:15.1]} 40... Rd8 {[%clk 0:00:18.9]} 41. Rxg6 {[%clk 0:01:15.4]}
41... Kc8 {[%clk 0:00:19.2]} 42. Re6 {[%clk 0:01:12.5]} 42... Kd7 {[%clk
0:00:19.4]} 43. Rxe5 {[%clk 0:01:12.9]} 43... Kxd6 {[%clk 0:00:20.3]} 44. Re4
{[%clk 0:01:13.3]} 44... Kd5 {[%clk 0:00:20.7]} 45. Kd3 {[%clk 0:01:13.7]} 45...
Rc8 {[%clk 0:00:19.1]} 46. Rxd4+ {[%clk 0:01:11.9]} 46... Ke5 {[%clk 0:00:20]}
47. f4+ {[%clk 0:01:10.2]} 47... Kf5 {[%clk 0:00:19.9]} 48. Ke3 {[%clk
0:01:10.5]} 48... Rc3+ {[%clk 0:00:19.1]} 49. Rd3 {[%clk 0:01:10.9]} 49... Rc4
{[%clk 0:00:18.5]} 50. Rd5+ {[%clk 0:01:11.1]} 50... Kg6 {[%clk 0:00:18.8]} 51.
Rd6+ {[%clk 0:01:10.9]} 51... Kf5 {[%clk 0:00:18.7]} 52. Rf6# {[%clk 0:01:10.7]}
1-0

[Event "*** Titled Tuesday Blitz"]
[Site "Chess.com"]
[Date "2021.04.06"]
[Round "9"]
[White "kingnb"]
[Black "Zhigalko_Sergei"]
[Result "0-1"]
[WhiteElo "2590"]
[BlackElo "2892"]
[TimeControl "180+1"]
[EndTime "11:45:38 PDT"]
[Termination "Zhigalko_Sergei won by resignation"]

1. d4 {[%clk 0:02:53]} 1... Nf6 {[%clk 0:03:00.1]} 2. Nf3 {[%clk 0:02:53.8]}
2... e6 {[%clk 0:03:00.5]} 3. Nbd2 {[%clk 0:02:51.3]} 3... d5 {[%clk 0:02:58.7]}
4. e3 {[%clk 0:02:51.6]} 4... b6 {[%clk 0:02:59]} 5. Bd3 {[%clk 0:02:51.6]} 5...
Bb7 {[%clk 0:02:59.5]} 6. O-O {[%clk 0:02:51.2]} 6... Bd6 {[%clk 0:03:00.1]} 7.
Qe2 {[%clk 0:02:51.8]} 7... Ne4 {[%clk 0:03:00]} 8. b3 {[%clk 0:02:51.1]} 8...
O-O {[%clk 0:02:55]} 9. Bb2 {[%clk 0:02:51.4]} 9... Nd7 {[%clk 0:02:54.6]} 10.
c4 {[%clk 0:02:51.3]} 10... f5 {[%clk 0:02:45.4]} 11. Rac1 {[%clk 0:02:50.7]}
11... a6 {[%clk 0:02:34.8]} 12. Rfd1 {[%clk 0:02:49.4]} 12... Qf6 {[%clk
0:02:32.4]} 13. Nf1 {[%clk 0:02:20.6]} 13... Qe7 {[%clk 0:02:22]} 14. Ne5 {[%clk
0:02:17.2]} 14... Nxe5 {[%clk 0:02:18.8]} 15. dxe5 {[%clk 0:02:18.1]} 15... Bc5
{[%clk 0:02:19.2]} 16. Ng3 {[%clk 0:02:08.2]} 16... f4 {[%clk 0:01:54.2]} 17.
cxd5 {[%clk 0:01:29.3]} 17... fxg3 {[%clk 0:01:28.2]} 18. Bxe4 {[%clk
0:01:28.7]} 18... Qh4 {[%clk 0:01:28.3]} 19. Bxh7+ {[%clk 0:01:12.2]} 19... Qxh7
{[%clk 0:01:25.4]} 20. hxg3 {[%clk 0:01:12.8]} 20... Bxd5 {[%clk 0:01:25]} 21.
b4 {[%clk 0:01:07.4]} 21... Bxb4 {[%clk 0:00:43.3]} 22. Rxc7 {[%clk 0:01:06]}
22... Bc5 {[%clk 0:00:37.3]} 23. Rxd5 {[%clk 0:00:58.7]} 23... exd5 {[%clk
0:00:32]} 24. e6 {[%clk 0:00:58.7]} 24... Qb1+ {[%clk 0:00:14.7]} 25. Kh2 {[%clk
0:00:56.9]} 25... Qh7+ {[%clk 0:00:13.9]} 26. Kg1 {[%clk 0:00:56.1]} 26... d4
{[%clk 0:00:13.9]} 27. exd4 {[%clk 0:00:53.9]} 27... Bd6 {[%clk 0:00:10.9]} 28.
Rd7 {[%clk 0:00:27.9]} 28... Qb1+ {[%clk 0:00:10.9]} 29. Kh2 {[%clk 0:00:27.7]}
29... Rf6 {[%clk 0:00:11.6]} 30. Rxg7+ {[%clk 0:00:16.1]} 30... Kxg7 {[%clk
0:00:11.2]} 31. d5 {[%clk 0:00:17]} 31... Rh8+ {[%clk 0:00:10.1]} 0-1